bitfinex-derivatives/quotes_ETHF0:USTF0_20241018
["timestamp","ask_amount","ask_price","bid_price","bid_amount"]
[1729285278859,3.2078,2644.8,2644.7,0.37809]
[1729285278860,1.48000162,2644.8,2644.7,0.37809]
[1729285279064,1.48000162,2644.8,2644.7,1.73809]
[1729285279359,2.84000162,2644.8,2644.7,1.73809]
[1729285281057,1.48000162,2644.8,2644.7,1.73809]
[1729285281252,2.84000162,2644.9,2644.8,0.37808]
[1729285281453,2.84000162,2644.9,2644.8,1.73808]
[1729285281654,2.84000162,2644.9,2644.8,0.37808]
[1729285281863,1.36,2644.9,2644.8,0.37808]
[1729285282759,2.83615368,2644.9,2644.8,0.37808]
[1729285283360,1.36,2644.9,2644.8,0.37808]
[1729285284562,2.83584015,2644.9,2644.8,0.37808]
[1729285285178,1.36,2644.9,2644.8,0.37808]
[1729285285883,0.98389113,2645.0,2644.9,0.37806]
[1729285286088,2.34389113,2645.0,2644.9,0.37806]
[1729285286399,1.36,2645.0,2644.9,0.37806]
[1729285286896,0.98389113,2645.1,2645.0,0.37805]
[1729285287202,2.34389113,2645.3,2645.0,9.1785]
[1729285287388,2.75429113,2645.4,2645.2,1.36]
[1729285287703,0.4104,2645.4,2645.3,0.37801]
[1729285287889,1.7704,2645.4,2645.3,0.37801]
[1729285289100,2.75429113,2645.4,2645.3,0.37801]
[1729285291195,1.7704,2645.4,2645.3,0.37801]
[1729285293105,2.75429113,2645.4,2645.3,0.37801]
[1729285294201,1.7704,2645.4,2645.3,0.37801]
[1729285300077,2.75429113,2645.4,2645.3,0.37801]
[1729285301870,2.7524588,2645.4,2645.3,0.37801]
[1729285304271,1.3924588,2645.4,2645.3,1.73801]
[1729285304471,2.7524588,2645.4,2645.3,0.37801]
[1729285306584,1.3924588,2645.4,2645.3,1.73801]
[1729285308278,0.4104,2645.4,2645.3,1.73801]
[1729285314480,3.2078,2645.5,2645.4,0.37799]
[1729285314679,5.36168,2645.5,2645.4,0.37799]
[1729285314979,4.9837,2645.5,2645.4,0.78039]
[1729285315189,6.45954015,2645.5,2645.4,0.78039]
[1729285318285,4.9837,2645.5,2645.4,0.78039]
[1729285319183,6.95689069,2645.5,2645.4,0.78039]
[1729285320084,3.74909069,2645.5,2645.4,0.78039]
[1729285323284,3.25326856,2645.5,2645.4,0.78039]
[1729285327278,1.7759,2645.5,2645.4,0.78039]
[1729285329189,3.74909069,2645.5,2645.4,0.78039]
[1729285330388,4.7881925,2645.5,2645.4,0.78039]
[1729285332789,2.32181255,2645.5,2645.4,0.78039]
[1729285332992,4.78905663,2645.5,2645.4,0.78039]
[1729285333189,2.32181255,2645.5,2645.4,0.78039]
[1729285336784,1.7759,2645.5,2645.4,0.78039]
[1729285338494,3.74990706,2645.5,2645.4,0.78039]
[1729285338793,2.38990706,2645.5,2645.4,0.78039]
[1729285338991,2.38990706,2645.5,2645.4,2.92279]
[1729285342293,0.4159,2645.5,2645.4,2.92279]
[1729285342889,2.38966998,2645.5,2645.4,2.92279]
[1729285343296,0.4159,2645.5,2645.4,2.92279]
[1729285343791,0.96180891,2645.5,2645.4,2.92279]
[1729285346392,2.32180891,2645.5,2645.4,1.56279]
[1729285347189,0.96180891,2645.5,2645.4,1.56279]
[1729285348489,0.96180891,2645.5,2645.4,2.92279]
[1729285350996,0.4159,2645.5,2645.4,2.92279]
[1729285352607,2.39115709,2645.5,2645.4,5.02415797]
[1729285353199,1.97525709,2645.6,2645.5,0.37798]
[1729285353403,1.97525709,2645.6,2645.5,3.84015095]
[1729285353600,1.97525709,2645.6,2645.5,2.84781523]
[1729285353908,1.97525709,2645.6,2645.5,4.33582844]
[1729285354200,1.97525709,2645.6,2645.5,2.84781523]
[1729285354901,5.18305709,2645.7,2645.6,0.37796]
[1729285355104,5.18305709,2645.7,2645.6,2.73013167]
[1729285357301,5.18305709,2645.7,2645.6,1.73796]
[1729285357498,5.18305709,2645.7,2645.6,2.73013167]
[1729285357807,5.18305709,2645.7,2645.6,1.73796]
[1729285358210,3.2078,2645.7,2645.6,1.73796]
[1729285358507,3.75375709,2645.8,2645.6,1.36]
[1729285358707,3.75375709,2645.8,2645.5,0.99217167]
[1729285358708,1.7785,2645.8,2645.7,1.73795]
[1729285359006,2.32450477,2645.8,2645.7,1.73795]
[1729285359211,4.29913234,2645.8,2645.7,1.73795]
[1729285359400,2.93913234,2645.8,2645.7,1.73795]
[1729285360100,2.93913234,2645.8,2645.7,2.12985]
[1729285361908,2.93901365,2645.8,2645.7,2.12985]
[1729285366212,2.39300888,2645.8,2645.7,2.12985]
[1729285367608,0.4185,2645.8,2645.7,2.12985]
[1729285368805,2.88586042,2645.8,2645.7,2.12985]
[1729285369101,0.4185,2645.8,2645.7,2.12985]
[1729285370310,2.88582209,2645.8,2645.7,2.12985]
[1729285371012,2.46732209,2645.9,2645.8,0.37793]
[1729285371216,2.46732209,2645.9,2645.8,1.73793]
[1729285371617,3.82732209,2645.9,2645.8,1.73793]
[1729285371903,1.36,2645.9,2645.8,1.73793]
[1729285374107,1.90572459,2645.9,2645.8,1.73793]
[1729285374299,2.28364459,2645.9,2645.8,1.73793]
[1729285374903,1.90572459,2645.9,2645.8,1.73793]
[1729285375308,2.28364459,2645.9,2645.8,1.73793]
[1729285375505,1.90572459,2645.9,2645.8,1.73793]
[1729285375700,0.54572459,2645.9,2645.8,1.73793]
[1729285375909,2.5193254,2645.9,2645.8,1.73793]
[1729285381115,1.97360081,2645.9,2645.8,1.73793]
[1729285387610,8.63008534,2646.0,2645.9,0.37792]
[1729285388511,5.42228534,2646.0,2645.9,0.37792]
[1729285388918,8.63008534,2646.0,2645.9,0.37792]
[1729285389220,5.42228534,2646.0,2645.9,0.37792]
[1729285389523,9.17639663,2646.0,2645.9,0.37792]
[1729285390824,6.70943129,2646.0,2645.9,0.37792]
[1729285392127,3.50163129,2646.0,2645.9,0.37792]
[1729285392529,6.33151129,2646.0,2645.9,0.37792]
[1729285392916,6.70942129,2646.0,2645.9,0.37792]
[1729285393211,4.97151129,2646.0,2645.9,0.37792]
[1729285393421,4.16181129,2646.0,2645.9,1.73792]
[1729285393723,3.6155,2646.0,2645.9,1.73792]
[1729285394121,0.4077,2646.0,2645.9,1.73792]
[1729285396229,0.95428259,2646.0,2645.9,1.73792]
[1729285396432,0.4077,2646.0,2645.9,1.73792]
[1729285397825,2.38462182,2646.0,2645.9,1.73792]
[1729285398034,0.54658259,2646.0,2645.9,2.73009167]
[1729285398228,1.48278281,2646.0,2645.9,4.33491584]
[1729285398426,1.48278281,2646.1,2645.9,3.95699584]
[1729285398730,1.48278281,2646.1,2646.0,2.72922267]
[1729285398922,1.48278281,2646.1,2646.0,3.15292267]
[1729285399123,0.54651275,2646.1,2646.0,3.15292267]
[1729285399319,1.97692182,2646.2,2646.1,0.37789]
[1729285399523,2.52334254,2646.2,2646.1,1.73789]
[1729285403226,1.97692182,2646.2,2646.1,1.73789]
[1729285403425,7.81125181,2646.4,2646.1,1.36]
[1729285403426,1.97692182,2646.3,2646.1,1.36]
[1729285403635,1.97692182,2646.3,2646.2,1.73788]
[1729285405831,3.98015,2646.4,2646.3,0.37786]
[1729285406134,3.98015,2646.4,2646.3,1.73786]
[1729285407335,5.34015,2646.4,2646.3,1.73786]
[1729285407727,3.98015,2646.4,2646.3,1.73786]
[1729285408331,5.34015,2646.4,2646.3,2.12776]
[1729285408734,3.98015,2646.4,2646.3,2.12776]
[1729285409841,6.07097595,2646.4,2646.3,2.12776]
[1729285410032,6.44880723,2646.4,2646.3,2.12776]
[1729285410336,6.07094804,2646.4,2646.3,2.12776]
[1729285410539,6.44879804,2646.4,2646.3,2.12776]
[1729285410729,6.44861989,2646.4,2646.3,2.12776]
[1729285411130,3.6023,2646.4,2646.3,2.12776]
[1729285411637,6.07069443,2646.4,2646.3,2.12776]
[1729285411833,6.44854443,2646.4,2646.3,2.12776]
[1729285412335,2.86289443,2646.4,2646.3,2.12776]
[1729285413036,2.74689657,2646.4,2646.3,2.12776]
[1729285415737,0.77235,2646.4,2646.3,2.12776]
[1729285415937,2.36945455,2646.4,2646.3,3.48776]
[1729285416439,1.97495455,2646.5,2646.4,0.37785]
[1729285416740,1.97495455,2646.5,2646.4,1.73785]
[1729285418538,2.52076201,2646.5,2646.4,1.73785]
[1729285421040,0.54580746,2646.5,2646.4,1.73785]
[1729285422042,3.01376813,2646.5,2646.4,1.73785]
[1729285425844,0.78213,2646.6,2646.5,0.37783]
[1729285426046,0.78213,2646.6,2646.5,1.73783]
[1729285426247,1.32829609,2646.6,2646.5,1.73783]
[1729285426548,0.78213,2646.6,2646.5,1.36]
[1729285426741,0.78213,2646.6,2646.5,1.73783]
[1729285432745,0.78212,2646.6,2646.5,1.73783]
[1729285433246,2.75896105,2646.6,2646.5,1.73783]
[1729285433743,3.30541977,2646.6,2646.5,1.73783]
[1729285433947,2.52329977,2646.6,2646.5,1.73783]
[1729285434147,0.54645872,2646.6,2646.5,1.73783]
[1729285434347,1.4831399,2646.6,2646.5,1.73783]
[1729285435252,2.02971223,2646.7,2646.6,0.37782]
[1729285435450,0.54657233,2646.7,2646.6,2.54312]
[1729285435651,2.02969928,2646.7,2646.6,2.54312]
[1729285436051,3.01659453,2646.7,2646.6,2.54312]
[1729285441348,0.54657233,2646.7,2646.6,2.54312]
[1729285441547,3.01986521,2646.7,2646.6,2.54312]
[1729285441747,5.68109288,2646.8,2646.7,0.37781]
[1729285441954,5.68109288,2646.8,2646.7,1.73781]
[1729285442655,2.47329288,2646.8,2646.7,1.73781]
[1729285442845,1.20587,2647.0,2646.8,0.37779]
[1729285442846,2.47329288,2646.9,2646.8,0.37779]
[1729285443051,1.97836862,2646.9,2646.8,1.73779]
[1729285443553,1.97836862,2646.9,2646.8,1.73778]
[1729285444350,2.80646862,2647.0,2646.9,0.37778]
[1729285444661,2.80646862,2647.0,2646.9,1.73778]
[1729285445347,0.8281,2647.0,2646.9,1.73778]
[1729285446145,1.20586,2647.0,2646.9,1.73778]
[1729285446553,3.18396665,2647.0,2646.9,1.73778]
[1729285446861,1.20586,2647.0,2646.9,1.73778]
[1729285447157,3.18395454,2647.0,2646.9,1.73778]
[1729285447549,3.18348281,2647.0,2646.9,1.73778]
[1729285447855,0.8281,2647.0,2646.9,1.73778]
[1729285448260,1.20586,2647.0,2646.9,1.73778]
[1729285449162,0.8281,2647.0,2646.9,1.73778]
[1729285449357,2.80482641,2647.0,2646.9,1.73778]
[1729285450258,0.8281,2647.0,2646.9,1.73778]
[1729285450954,1.20586,2647.0,2646.9,1.73778]
[1729285451361,0.8281,2647.0,2646.9,1.73778]
[1729285453157,1.37428235,2647.0,2646.9,1.73778]
[1729285454559,3.72876876,2647.0,2646.9,1.73778]
[1729285454754,1.37428235,2647.0,2646.9,1.73778]
[1729285456664,0.8281,2647.0,2646.9,1.73778]
[1729285457767,2.80482641,2647.0,2646.9,1.73778]
[1729285459167,0.8281,2647.0,2646.9,1.73778]
[1729285460260,3.18258641,2647.0,2646.9,1.73778]
[1729285460456,2.80482641,2647.0,2646.9,1.73778]
[1729285462256,0.8281,2647.0,2646.9,1.73778]
[1729285464367,3.18258641,2647.0,2646.9,1.73778]
[1729285464569,2.80482641,2647.0,2646.9,1.73778]
[1729285465278,0.8281,2647.0,2646.9,1.73778]
[1729285469574,2.80482641,2647.0,2646.9,1.73778]
[1729285469770,3.18258641,2647.0,2646.9,1.73778]
[1729285469973,2.80482641,2647.0,2646.9,1.73778]
[1729285472269,0.8281,2647.0,2646.9,1.73778]
[1729285475079,1.20586,2647.0,2646.9,1.73778]
[1729285475278,0.8281,2647.0,2646.9,1.73778]
[1729285475479,1.20586,2647.0,2646.9,1.36]
[1729285475682,1.20586,2647.0,2646.9,1.73778]
[1729285478379,3.6785128,2647.0,2646.9,1.73778]
[1729285481287,1.20586,2647.0,2646.9,0.37778]
[1729285481476,1.75314123,2647.0,2646.9,0.37778]
[1729285482887,1.75314123,2647.0,2646.9,1.73778]
[1729285485575,0.54728123,2647.0,2646.9,1.73778]
[1729285485781,1.32643123,2647.1,2647.0,0.37776]
[1729285486285,1.32643123,2647.1,2647.0,0.80376]
[1729285486592,1.32643123,2647.1,2647.0,0.426]
[1729285486593,2.12983123,2647.1,2647.0,0.426]
[1729285486781,2.12984123,2647.1,2647.0,0.37776]
[1729285488181,2.12984123,2647.1,2647.0,1.73776]
[1729285488789,2.12984123,2647.1,2647.0,2.13326]
[1729285490290,2.12984123,2647.1,2647.0,0.77326]
[1729285491589,2.12984123,2647.1,2647.0,0.77326]
[1729285496498,5.09702459,2647.1,2647.0,0.77326]
[1729285499892,2.12984123,2647.1,2647.0,0.77326]
[1729285500102,7.58980577,2647.1,2647.0,0.77326]
[1729285500404,2.12984123,2647.1,2647.0,0.77326]
[1729285501699,4.62251499,2647.1,2647.0,0.77326]
[1729285501901,2.12984123,2647.1,2647.0,0.77326]
[1729285502889,2.12984123,2647.1,2647.0,0.37776]
[1729285503093,5.09702459,2647.1,2647.0,0.37776]
[1729285503294,2.12984123,2647.1,2647.0,0.37776]
[1729285504607,3.48984123,2647.1,2647.0,0.37776]
[1729285507207,6.88968123,2647.1,2646.7,0.99070982]
[1729285507409,0.37782,2646.6,2646.4,0.4065]
[1729285507700,2.55123,2646.5,2646.4,2.14435]
[1729285507892,3.51371123,2646.5,2646.4,2.14435]
[1729285508497,5.98753455,2646.5,2646.4,2.14435]
[1729285509294,5.44025332,2646.5,2646.4,2.14435]
[1729285509804,5.98729741,2646.5,2646.4,2.14435]
[1729285510007,5.44025332,2646.5,2646.4,2.14435]
[1729285510198,5.44025332,2646.5,2646.4,1.7665]
[1729285510604,5.44025332,2646.5,2646.4,1.36]
[1729285510794,4.08025332,2646.5,2646.4,1.36]
[1729285511098,4.08025332,2646.5,2646.3,1.73786]
[1729285511099,0.37785,2646.4,2646.3,1.73786]
[1729285511298,2.85167332,2646.4,2646.3,1.73786]
[1729285511502,0.37785,2646.4,2646.3,1.73786]
[1729285511700,4.21167332,2646.4,2646.3,1.36]
[1729285511903,0.37788,2646.2,2646.1,0.4225]
[1729285512109,1.73788,2646.2,2646.1,2.16039]
[1729285512294,2.85170332,2646.2,2646.1,2.16039]
[1729285512502,0.77758,2646.2,2646.1,2.16039]
[1729285513009,0.3997,2646.2,2646.1,2.16039]
[1729285513403,2.37598614,2646.2,2646.1,2.16039]
[1729285515605,0.3997,2646.2,2646.1,2.16039]
[1729285517610,1.88026795,2646.2,2646.1,2.16039]
[1729285517803,0.3997,2646.2,2646.1,2.16039]
[1729285518203,0.77758,2646.2,2646.1,2.16039]
[1729285518410,2.25828478,2646.2,2646.1,2.16039]
[1729285519408,5.46608478,2646.2,2646.1,2.16039]
[1729285521413,3.98538,2646.2,2646.1,2.16039]
[1729285522211,5.46608478,2646.2,2646.1,2.16039]
[1729285522418,0.77758,2646.2,2646.1,2.16039]
[1729285523023,1.76579252,2646.2,2646.1,2.16039]
[1729285523327,4.97356608,2646.2,2646.1,2.16039]
[1729285525009,1.76576608,2646.2,2646.1,2.16039]
[1729285525410,1.76555477,2646.2,2646.1,2.16039]
[1729285530925,3.12555477,2646.2,2646.1,2.16039]
[1729285532033,6.33335477,2646.2,2646.1,2.16039]
[1729285532735,3.12555477,2646.2,2646.1,2.16039]
[1729285532939,6.33335477,2646.2,2646.1,2.16039]
[1729285533333,3.12555477,2646.2,2646.1,2.16039]
[1729285535334,6.33335477,2646.2,2646.1,2.16039]
[1729285536434,6.33335477,2646.2,2646.1,1.7825]
[1729285537037,6.33335477,2646.2,2646.1,2.16039]
[1729285538341,3.12555477,2646.2,2646.1,2.16039]
[1729285539743,2.13758,2646.2,2646.1,2.16039]
[1729285540438,3.61828478,2646.2,2646.1,2.16039]
[1729285541433,2.13758,2646.2,2646.1,2.16039]
[1729285542335,3.62022194,2646.2,2646.1,2.16039]
[1729285545540,2.13758,2646.2,2646.1,2.16039]
[1729285548549,4.11443592,2646.2,2646.1,2.16039]
[1729285550449,2.13758,2646.2,2646.1,2.16039]
[1729285551551,4.6086499,2646.2,2646.1,2.16039]
[1729285552649,2.13758,2646.2,2646.1,2.16039]
[1729285553244,2.68585085,2646.2,2646.1,2.16039]
[1729285553846,2.68585085,2646.2,2646.1,0.80039]
[1729285561645,3.54025085,2646.2,2646.1,0.80039]
[1729285561850,3.54025085,2646.2,2645.9,0.98841175]
[1729285561851,0.37791,2646.0,2645.9,0.98841175]
[1729285562045,7.42702864,2646.0,2645.9,0.98841175]
[1729285562253,7.97529949,2646.0,2645.9,0.98841175]
[1729285562463,0.37792,2645.9,2645.8,0.98841175]
[1729285562658,5.16729326,2645.9,2645.8,0.98841175]
[1729285564152,4.78937326,2645.9,2645.7,0.98841175]
[1729285564460,1.73793,2645.8,2645.7,1.36636175]
[1729285564660,1.73793,2645.8,2645.7,2.47603903]
[1729285565260,3.72213684,2645.8,2645.7,2.47603903]
[1729285566060,3.72213684,2645.8,2645.7,2.09808903]
[1729285567354,3.72213684,2645.8,2645.7,0.98841175]
[1729285567554,3.72213684,2645.8,2645.7,2.47581429]
[1729285568154,4.55653684,2645.8,2645.7,1.36636175]
[1729285569253,4.55653684,2645.8,2645.7,0.98841175]
[1729285569661,7.76433684,2645.8,2645.7,0.98841175]
[1729285575758,7.76433684,2645.8,2645.7,1.36636175]
[1729285576465,7.76433684,2645.8,2645.7,0.98841175]
[1729285576871,7.76433684,2645.8,2645.7,1.36636175]
[1729285578763,4.55653684,2645.8,2645.7,1.36636175]
[1729285578968,2.57233,2645.8,2645.7,0.37795]
[1729285579272,2.57233,2645.8,2645.6,1.57695]
[1729285579273,0.37795,2645.7,2645.6,1.57695]
[1729285579569,1.73795,2645.7,2645.6,1.57695]
[1729285581773,3.72119655,2645.7,2645.6,1.57695]
[1729285591380,2.36119655,2645.7,2645.6,2.93695]
[1729285591580,3.72119655,2645.7,2645.6,2.93695]
[1729285593381,3.72119655,2645.7,2645.6,1.57695]
[1729285601990,3.72119655,2645.7,2645.6,1.199]
[1729285602283,3.72119655,2645.7,2645.2,1.98336857]
[1729285602284,2.85343234,2645.7,2645.2,0.99168428]
[1729285602482,2.85343234,2645.7,2645.2,1.36970428]
[1729285602483,1.73801,2645.3,2645.2,1.36970428]
[1729285602684,1.73801,2645.3,2645.2,0.78102]
[1729285603181,2.14601,2645.3,2645.2,0.78102]
[1729285606492,2.14601,2645.3,2645.2,0.403]
[1729285606692,1.768,2645.3,2645.1,0.8061]
[1729285606892,1.768,2645.3,2645.0,0.3889]
[1729285606893,0.37803,2645.1,2645.0,0.3889]
[1729285607084,0.37803,2645.1,2645.0,0.37805]
[1729285607085,3.72104747,2645.1,2645.0,0.37805]
[1729285607493,3.34301747,2645.1,2644.9,0.3889]
[1729285607692,1.7613,2645.0,2644.9,0.76695]
[1729285608190,3.24740036,2645.0,2644.9,0.76695]
[1729285608489,3.62545036,2645.0,2644.9,0.76695]
[1729285608792,3.62547148,2645.0,2644.9,0.76695]
[1729285608992,3.24742148,2645.0,2644.9,0.76695]
[1729285609493,3.62547148,2645.0,2644.9,0.76695]
[1729285609681,3.24742148,2645.0,2644.7,2.1812]
[1729285609882,3.24742148,2645.0,2644.7,0.8212]
[1729285609883,1.48612148,2644.9,2644.7,0.8212]
[1729285610089,1.48612148,2644.9,2644.7,0.37809]
[1729285610090,3.65400148,2644.8,2644.7,0.37809]
[1729285610283,0.37809,2644.7,2644.6,0.767]
[1729285610491,3.22421148,2644.7,2644.6,0.3889]
[1729285611189,0.37811,2644.6,2644.5,3.58592]
[1729285611489,3.13888718,2644.6,2644.5,3.58592]
[1729285613087,2.14911,2644.6,2644.5,3.58592]
[1729285613389,1.771,2644.6,2644.5,3.2078]
[1729285613588,3.13888718,2644.6,2644.5,3.2078]
[1729285613786,3.13888718,2644.6,2644.5,3.58592]
[1729285614292,3.13888718,2644.6,2644.5,3.2078]
[1729285614684,3.13888718,2644.6,2644.5,3.58592]
[1729285615881,2.14911,2644.6,2644.5,3.58592]
[1729285616587,2.14911,2644.6,2644.5,3.2078]
[1729285617093,6.54237718,2644.6,2643.9,1.87251]
[1729285617280,0.37818,2644.2,2644.1,0.37816]
[1729285617480,0.37818,2644.2,2644.0,1.205]
[1729285617481,0.37818,2644.1,2644.0,1.58319]
[1729285617684,0.37818,2644.1,2643.8,3.2078]
[1729285617685,0.37821,2644.0,2643.9,0.3782]
[1729285617890,1.73821,2644.0,2643.9,0.3782]
[1729285619184,0.37821,2643.9,2643.8,3.2078]
[1729285619491,1.73822,2643.9,2643.8,0.37821]
[1729285619891,1.36,2643.9,2643.7,1.205]
[1729285620102,1.36,2644.0,2643.5,4.42475]
[1729285620103,1.36,2643.8,2643.5,4.42475]
[1729285620294,1.73825,2643.6,2643.5,4.0465]
[1729285620501,0.37826,2643.5,2643.4,0.37827]
[1729285620701,1.73826,2643.5,2643.4,0.37827]
[1729285621091,1.36,2643.5,2643.4,0.37827]
[1729285621692,1.73826,2643.5,2643.4,0.37827]
[1729285621897,1.36,2643.5,2643.4,0.37827]
[1729285622598,0.37825,2643.6,2643.5,0.37826]
[1729285622800,1.73825,2643.6,2643.5,0.37826]
[1729285623599,1.64974,2643.7,2643.5,0.37826]
[1729285623796,1.36,2643.6,2643.5,0.37826]
[1729285624795,1.73825,2643.6,2643.5,0.37826]
[1729285625002,1.36,2643.6,2643.5,0.37826]
[1729285626199,1.36,2643.6,2642.9,3.2078]
[1729285626403,4.4793,2643.7,2643.6,0.37825]
[1729285626695,6.21754,2643.7,2643.6,0.37825]
[1729285626911,6.21754,2643.7,2643.5,0.37825]
[1729285627196,1.36,2643.6,2643.5,0.37825]
[1729285633699,4.85754,2643.7,2643.6,0.37825]
[1729285633894,6.21754,2643.7,2643.6,0.37825]
[1729285635405,5.8393,2643.7,2643.6,0.37825]
[1729285635701,6.21753,2643.7,2643.6,0.37825]
[1729285636404,3.00973,2643.7,2643.6,0.37825]
[1729285638491,3.2078,2644.1,2643.9,0.37819]
[1729285638691,1.73819,2644.0,2643.9,0.37819]
[1729285648105,1.73819,2644.0,2643.7,1.2164]
[1729285648106,1.36,2644.0,2643.7,1.2164]
[1729285648301,0.37821,2643.9,2643.8,0.37821]
[1729285648502,1.73821,2643.9,2643.8,0.37821]
[1729285649313,1.36,2643.9,2643.8,0.37821]
[1729285649605,3.6346,2644.1,2644.0,0.37819]
[1729285649809,4.9946,2644.1,2644.0,0.37819]
[1729285650013,3.6346,2644.1,2644.0,0.37819]
[1729285650310,4.9946,2644.1,2644.0,0.37819]
[1729285650511,1.7868,2644.1,2644.0,0.37819]
[1729285650902,1.36,2644.1,2644.0,1.73819]
[1729285656617,1.7809,2644.1,2644.0,1.73819]
[1729285658511,1.7809,2644.1,2644.0,0.37819]
[1729285658911,1.7809,2644.1,2644.0,0.77189]
[1729285661120,2.77067718,2644.1,2644.0,0.77189]
[1729285665521,2.77067718,2644.1,2644.0,0.37819]
[1729285665723,1.7809,2644.1,2644.0,0.37819]
[1729285665933,2.76977825,2644.1,2644.0,0.37819]
[1729285666835,3.14795825,2644.1,2644.0,0.37819]
[1729285668328,2.76977825,2644.1,2644.0,0.37819]
[1729285668628,2.15908,2644.1,2644.0,0.37819]
[1729285668830,3.14798829,2644.1,2644.0,0.37819]
[1729285669030,2.15908,2644.1,2644.0,0.37819]
[1729285670116,0.79908,2644.1,2644.0,0.37819]
[1729285670321,1.90702148,2644.1,2644.0,0.37819]
[1729285671222,2.28520148,2644.1,2644.0,0.37819]
[1729285672520,1.90702148,2644.1,2644.0,0.37819]
[1729285680126,2.30532148,2644.1,2644.0,0.37819]
[1729285681525,0.8192,2644.1,2644.0,0.37819]
[1729285681826,2.30484502,2644.1,2644.0,0.37819]
[1729285682427,0.8192,2644.1,2644.0,0.37819]
[1729285683630,2.79996233,2644.1,2644.0,0.37819]
[1729285684529,2.79996233,2644.1,2644.0,1.36981434]
[1729285686243,2.79996233,2644.1,2644.0,0.37819]
[1729285686536,2.79996233,2644.1,2644.0,1.36981434]
[1729285689634,2.79996233,2644.1,2644.0,2.47969095]
[1729285689830,2.79996233,2644.1,2644.0,1.36981434]
[1729285693644,0.8192,2644.1,2644.0,1.36981434]
[1729285694541,0.8192,2644.1,2644.0,2.48015991]
[1729285695129,0.8192,2644.1,2644.0,1.36981434]
[1729285695337,3.29515291,2644.1,2644.0,1.36981434]
[1729285695839,3.29515291,2644.1,2644.0,0.37819]
[1729285696032,3.29515291,2644.1,2644.0,1.36981434]
[1729285698151,3.67333291,2644.1,2644.0,1.36981434]
[1729285698438,3.29515291,2644.1,2644.0,1.36981434]
[1729285698836,0.8192,2644.1,2644.0,1.36981434]
[1729285699739,3.29515291,2644.1,2644.0,1.36981434]
[1729285699944,0.8192,2644.1,2644.0,2.48025594]
[1729285700138,0.8192,2644.1,2644.0,1.4886316]
[1729285700337,0.8192,2644.1,2644.0,1.3711577]
[1729285700544,0.8192,2644.1,2644.0,2.4816091]
[1729285700941,0.8192,2644.1,2644.0,2.48161245]
[1729285701350,0.8192,2644.1,2644.0,1.4886414]
[1729285701646,0.8192,2644.1,2644.0,1.48863031]
[1729285702846,2.80227569,2644.1,2644.0,2.97606683]
[1729285703047,1.19738,2644.1,2644.0,1.48863031]
[1729285703346,0.8192,2644.1,2644.0,2.48162028]
[1729285703549,3.29515291,2644.1,2644.0,1.37117997]
[1729285703749,0.8192,2644.1,2644.0,2.48169092]
[1729285704050,0.8192,2644.1,2644.0,2.48169069]
[1729285704248,0.8192,2644.1,2644.0,2.48165618]
[1729285704651,3.29515291,2644.1,2644.0,1.37117997]
[1729285704842,0.8192,2644.1,2644.0,2.48167483]
[1729285705649,3.29515291,2644.1,2644.0,1.37117997]
[1729285706151,0.8192,2644.1,2644.0,1.37117997]
[1729285706550,0.8192,2644.1,2644.0,2.48166497]
[1729285706741,0.8192,2644.1,2644.0,2.48167972]
[1729285707242,3.67333291,2644.1,2644.0,1.37117997]
[1729285707443,0.8192,2644.1,2644.0,2.48166854]
[1729285707844,3.29515291,2644.1,2644.0,1.37117997]
[1729285708150,3.67333291,2644.1,2644.0,1.37117997]
[1729285708349,3.29515291,2644.1,2644.0,1.37117997]
[1729285709245,3.67333291,2644.1,2644.0,1.37117997]
[1729285709551,3.29515291,2644.1,2644.0,1.37117997]
[1729285709849,0.8192,2644.1,2644.0,2.48170776]
[1729285710353,3.29515291,2644.1,2644.0,1.37117997]
[1729285710853,3.67333291,2644.1,2644.0,1.37117997]
[1729285711053,3.29515291,2644.1,2644.0,1.37117997]
[1729285711248,3.67333291,2644.1,2644.0,1.37117997]
[1729285711555,3.29515291,2644.1,2644.0,1.37117997]
[1729285712447,3.29515291,2644.1,2644.0,2.48173261]
[1729285712650,3.29515291,2644.1,2644.0,1.37117997]
[1729285713157,3.29515291,2644.1,2644.0,2.48173433]
[1729285713345,3.29515291,2644.1,2644.0,1.37117997]
[1729285713549,0.8192,2644.1,2644.0,2.48174908]
[1729285714057,0.8192,2644.1,2644.0,2.48181883]
[1729285715951,0.8192,2644.1,2644.0,1.48875911]
[1729285716360,0.8192,2644.1,2644.0,2.48182946]
[1729285716562,0.8192,2644.1,2644.0,1.48875911]
[1729285716757,0.8192,2644.1,2644.0,1.48874004]
[1729285716972,0.8192,2644.1,2644.0,2.48181813]
[1729285717255,0.8192,2644.1,2644.0,1.48874004]
[1729285717655,3.29515291,2644.1,2644.0,1.37126272]
[1729285717855,0.8192,2644.1,2644.0,2.48190148]
[1729285718166,1.19738,2644.1,2644.0,2.48190148]
[1729285718364,0.8192,2644.1,2644.0,2.48190148]
[1729285718663,1.19738,2644.1,2644.0,2.48190148]
[1729285718984,0.8192,2644.1,2644.0,2.48190148]
[1729285719462,0.8192,2644.1,2644.0,1.48883913]
[1729285720053,0.8192,2644.1,2644.0,2.48191527]
[1729285720455,0.8192,2644.1,2644.0,1.48883913]
[1729285720758,0.8192,2644.1,2644.0,2.48191468]
[1729285722065,0.8192,2644.1,2644.0,1.48883913]
[1729285722465,0.8192,2644.1,2644.0,2.48191832]
[1729285722765,0.8192,2644.1,2644.0,1.48883913]
[1729285723158,0.8192,2644.1,2644.0,2.48191588]
[1729285723357,0.8192,2644.1,2644.0,1.48883913]
[1729285723666,0.8192,2644.1,2644.0,2.48192572]
[1729285723860,0.8192,2644.1,2644.0,2.48194603]
[1729285724163,0.8192,2644.1,2644.0,1.48885944]
[1729285725462,0.8192,2644.1,2644.0,1.48885242]
[1729285726256,3.29515291,2644.1,2644.0,2.48192499]
[1729285726561,3.29515291,2644.1,2644.0,1.37129758]
[1729285726753,3.29515291,2644.1,2644.0,2.48198199]
[1729285726962,3.29515291,2644.1,2644.0,2.48197939]